Workbook

Sheet Read Me
A1: Air Pollution Control Cost Estimation Spreadsheet
A2: For Selective Catalytic Reduction (SCR)
A3: U.S. Environmental Protection Agency
A4: Air Economics Group
A5: Health and Environmental Impacts Division
A6: Office of Air Quality Planning and Standards
A7: (May 2016)
B9: This spreadsheet allows users to estimate the capital and annualized costs for installing and operating a Selective Catalytic Reduction (SCR) control device. SCR is a post-combustion control technology for reducing NOx emissions that employs a metal-based catalyst and an ammonia-based reducing reagent (urea or ammonia). The reagent reacts selectively with the flue gas NOx within a specific temperature range to produce N2 and water vapor.
B11: The calculation methodologies used in this spreadsheet are those presented in the U.S. EPA's Air Pollution Control Cost Manual. This spreadsheet is intended to be used in combination with the SCR chapter and cost estimation methodology in the Control Cost Manual. For a detailed description of the SCR control technology and the cost methodologies, see Section 4, Chapter 2 of the Air Pollution Control Cost Manual (as updated in 2016). A copy of the Control Cost Manual is available on the U.S. EPA's "Technology Transfer Network" website at: http://www3.epa.gov/ttn/catc/products.html#cccinfo.
B13: The spreadsheet can be used to estimate capital and annualized costs for applying SCR, and particularly to the following types of combustion units:
B15: (1) | C15: Coal-fired utility boilers with full load capacities greater than or equal to 25 MW.
B16: (2) | C16: Fuel oil- and natural gas-fired utility boilers with full load capacities greater than or equal to 25 MW.
B17: (3) | C17: Coal-fired industrial boilers with maximum heat input capacities greater than or equal to 250 MMBtu/hour.
B18: (4) | C18: Fuel oil- and natural gas-fired industrial boilers with maximum heat input capacities greater than or equal to 250 MMBtu/hour.
B20: The methodology used in this spreadsheet is based on the U.S. EPA Clean Air Markets Division (CAMD)'s Integrated Planning Model (IPM) (version 5.13). The size and costs of the SCR are based primarily on five parameters: the boiler size or heat input, the type of fuel burned, the required level of NOx reduction, reagent consumption rate, and catalyst costs. The equations for utility boilers are identical to those used in the IPM. However, the equations for industrial boilers were developed based on the IPM equations for utility boilers. This approach provides study-level estimates (±30%) of SCR capital and annual costs. Default data in the spreadsheet is taken from the SCR Control Cost Manual and other sources such as the U.S. Energy Information Administration (EIA). The actual costs may vary from those calculated here due to site-specific conditions. Selection of the most cost-effective control option should be based on a detailed engineering study and cost quotations from system suppliers. For additional information regarding the IPM, see the EPA Clean Air Markets webpage at http://www.epa.gov/airmarkets/power-sector-modeling. The Agency wishes to note that all spreadsheet data inputs other than default data are merely available to show an example calculation.
B22: Instructions
B23: Step 1: Please select on the Data Inputs tab and click on the Reset Form button. This will clear many of the input cells and reset others to default values.
B24: Step 2: Select the type of combustion unit (utility or industrial) using the pull down menu. Indicate whether the SCR is for new construction or retofit of an existing boiler. If the SCR will be installed on an existing boiler, enter a retrofit factor between 0.8 and 1.5. Use 1 for retrofits with an average level of difficulty. For the more difficult retrofits, you may use a retrofit factor greater than 1; however, you must document why the value used is appropriate.
B25: Step 3: Select the type of fuel burned (coal, fuel oil, and natural gas) using the pull down menu. If you select fuel oil or natural gas, the HHV and NPHR fields will be prepopulated with default values. If you select coal, then you must complete the coal input box by first selecting the type of coal burned from the drop down menu. The weight percent sulfur content, HHV, and NPHR will be pre-populated with default factors based on the type of coal selected. However, we encourage you to enter your own values for these parameters, if they are known, since the actual fuel parameters may vary from the default values provided. Method 1 is pre-selected as the default method for calculating the catalyst replacement cost. For coal-fired units, you choose either method 1 or method 2 for calculating the catalyst replacement cost by selecting appropriate radio button.
B26: Step 4: Complete all of the cells highlighted in yellow. If you do not know the catalyst volume (Volcatalyst) or flue gas flow rate (Qflue gas), please enter "UNK" and these values will be calculated for you. As noted in step 1 above, some of the highlighted cells are pre-populated with default values based on 2014 data. Users should document the source of all values entered in accordance with what is recommended in the Control Cost Manual, and the use of actual values other than the default values in this spreadsheet, if appropriately documented, is acceptable. You may also adjust the maintenance and administrative charges cost factors (cells highlighted in blue) from their default values of 0.005 and 0.03, respectively. The default values for these two factors were developed for the CAMD Integrated Planning Model (IPM). If you elect to adjust these factors, you must document why the alternative values used are appropriate.
B27: Step 5: Once all of the data fields are complete, select the SCR Design Parameters tab to see the calculated design parameters and the Cost Estimate tab to view the calculated cost data for the installation and operation of the SCR.

Sheet Data Inputs
A1: Data Inputs
A3: Enter the following data for your combustion unit:
A4: Is the combustion unit a utility or industrial boiler? | F4: What type of fuel does the unit burn?
A5: Is the SCR for a new boiler or retrofit of an existing boiler?
A7: =IF(S8=3, "Please enter a retrofit factor between 0.8 and 1.5 based on the level of difficulty. Enter 1 for projects of average retrofit difficulty.", " ") -> Please enter a retrofit factor between 0.8 and 1.5 based on the level of difficulty. Enter 1 for projects of average retrofit difficulty. | D7: 1.5 | E7: =IF(D7>1, "* NOTE: You must document why a retrofit factor of "&D7&" is appropriate for the proposed project.", " ") -> * NOTE: You must document why a retrofit factor of 1.5 is appropriate for the proposed project.
A8: Complete all of the highlighted data fields: | P8: 3 | Q8: Utility | S8: 3 | T8: New Construction
F9: Provide the following information for coal-fired boilers: | Q9: Industrial | T9: Retrofit
B10: What is the rating at full load capacity (MMBtu/hr)? | C10: 230 | D10: MMBtu/hr | F10: Type of coal burned: | T10: SO2 Emission Rate (lbs SO2/MMBtu) = | V10: =IF(I12=" ", "NA",((I12/100)*(64/32)*1000000)/C12) -> 0.5291005291
R11: Bituminous | T11: SO2 Emission Rate | V11: =IF(V10="NA",1, (IF(V10<3,2,(IF(V10>3,3))))) -> 2
B12: What is the higher heating value (HHV) of the fuel? | C12: 7560 | D12: Btu/lb | F12: Enter the sulfur content (%S) = | I12: 0.2 | J12: percent by weight | P12: 1 | R12: Sub-Bituminous | S12: 3
B13: =IF(OR(C12=C73, C12=1030,C12=11814,C12=6534,C12=8730,C12=139713),"*HHV value of "&C12&" "&D12&" is a default value. See below for data source. Enter actual HHV for fuel burned, if known. "," ") ->  | G13: =IF(P17=2, (IF(OR(I12=0.91,I12=0.31,I12=2.35,I12=C72),"*The sulfur content of "&I12&"% is a default value. See below for data source. Enter actual value, if known.", " ")), " ") ->  | R13: Lignite
B14: What is the estimated actual annual fuel consumption? | C14: =660000000/6 -> 110000000 | D14: lbs/year | R14: Coal blend
F15: For units burning coal blends: | R15: Not Applicable
G16: Note: The table below is pre-populated with default values for HHV and %S. Please enter the actual values for these parameters in the table below. If the actual value for any parameter is not known, you may use the default values provided. | Q16: Coal
B17: Enter the net plant heat input rate (NPHR) | C17: 10 | D17: MMBtu/MW | P17: 2 | Q17: Fuel Oil
I18: Fraction in Coal Blend | J18: %S | K18: HHV (Btu/lb) | Q18: Natural Gas
B19: If the NPHR is not known, use the default NPHR value: | C19: Fuel Type | D19: Default NPHR | G19: Bituminous | I19: 0 | J19: 2.35 | K19: 11814
C20: Coal | D20: 10 MMBtu/MW | G20: Sub-Bituminous | I20: 1 | J20: 0.2 | K20: =C12 -> 7560
C21: Fuel Oil | D21: 11 MMBtu/MW | G21: Lignite | I21: 0 | J21: 0.91 | K21: 6534
C22: Natural Gas | D22: 8.2 MMBtu/MW
G23: Please click the calculate button to calculate weighted values based on the data in the table above.
B24: Plant Elevation | C24: 450 | D24: Feet above sea level
F25: For coal-fired boilers, you may use either Method 1 or Method 2 to calculate the catalyst replacement cost. The equations for both methods are shown on rows 85 and 86 on the Cost Estimate tab. Please select your preferred method:
F26: =IF(AND(P17=2,P26=3), "* You must select either method 1 or method 2 for a coal-fired boiler!", " ") ->  | P26: 1
A28: Enter the following design parameters for the proposed SCR:
B31: Number of days the SCR operates (tSCR) | C31: 365 | D31: days | H31: Number of SCR reactor chambers (nscr) | K31: 1
B32: Number of days the boiler operates (tplant) | C32: 365 | D32: days | H32: Number of catalyst layers (Rlayer) | K32: 3
B33: Inlet NOx Emissions (NOxin) to SCR | C33: 0.58 | D33: lb/MMBtu | H33: Number of empty catalyst layers (Rempty) | K33: 1
B34: NOx Removal Efficiency (EF) provided by vendor | C34: 90 | D34: percent | H34: Ammonia Slip (Slip) provided by vendor | K34: 10 | L34: ppm
B35: Stoichiometric Ratio Factor (SRF) | C35: 0.525 | H35: Volume of the catalyst layers (Volcatalyst) (Enter "UNK" if value is not known) | K35: UNK | L35: Cubic feet
B36: =IF(OR(C35=1.05, C35=0.525), "*The SRF value of "&C35&" is a default value. User should enter actual value, if known.", " ") -> *The SRF value of 0.525 is a default value. User should enter actual value, if known. | H36: Flue gas flow rate (Qfluegas) (Enter "UNK" if value is not known) | K36: 240000 | L36: acfm
B38: Estimated operating life of the catalyst (Hcatalyst) | C38: 24000 | D38: ="hours"&(IF(C38=26000,"*", " ")) -> hours | E38: =IF(C38=26000, "* 24,000 hours is a default value for the operating life of a catalyst. User should enter actual value, if known.", " ") -> 
B39: Estimated SCR equipment life | C39: 20 | D39: Years* | H39: Gas temperature at the SCR inlet (T) | K39: 300 | L39: oF | O39: =IF(K39=650,"*The SCR inlet temperature of 650 deg.F is a default value. Enter actual temperature, if known.", " ") -> 
B40: =IF(P8=2,"* For utility boilers, the typical equipment life of an SCR is at least 30 years.",(IF(P8=3,"* For industrial boilers, the typical equipment life is between 20 and 25 years.", " "))) -> * For industrial boilers, the typical equipment life is between 20 and 25 years. | H40: Base case fuel gas volumetric flow rate factor (Qfuel) | K40: 516 | L40: ft3/min-MMBtu/hour
B41: Concentration of reagent as stored (Cstored) | C41: 50 | D41: ="percent"&(IF(OR(C41=29, C41=50),"*", " ")) -> percent* | E41: =IF(AND(C41=29,C42=56), "*The reagent concentration of 29% and density of 56 lbs/cft are default values for ammonia reagent. User should enter actual values for reagent, if different from the default values provided.", (IF(AND(C41=50,C42=71), "*The reagent concentration of 50% and density of 71 lbs/cft are default values for urea reagent. User should enter actual values for reagent, if different from the default values provided.", " "))) -> *The reagent concentration of 50% and density of 71 lbs/cft are default values for urea reagent. User should enter actual values for reagent, if different from the default values provided.
B42: Density of reagent as stored (ρstored) | C42: 71 | D42: ="lb/cubic feet"&(IF(OR(C42=56,C42=71),"*"," ")) -> lb/cubic feet*
B43: Number of days reagent is stored (tstorage) | C43: 30 | D43: days | J43: Densities of typical SCR reagents:
J44: 50% urea solution | L44: 71 | M44: lbs/ft3
J45: 29.4% aqueous NH3 | L45: 56 | M45: lbs/ft3 | Q45: Ammonia
J46: 19% aqueous NH3 | L46: 58 | M46: lbs/ft3 | P46: 2 | Q46: Urea
B47: Select the reagent used
A50: Enter the cost data for the proposed SCR:
B52: Desired dollar-year | C52: 2016
B53: ="CEPCI for " & C52 -> CEPCI for 2016 | C53: 536.4 | D53: =IF(C52=2014," ","Enter the CEPCI value for "&C52) -> Enter the CEPCI value for 2016 | F53: 584.6 | G53: 2012 CEPCI | I53: CEPCI = Chemical Engineering Plant Cost Index
B54: Annual Interest Rate (i) | C54: 5 | D54: Percent
B55: Reagent (Costreag) | C55: 1.62 | D55: ="$/gallon for a "&C41&" percent solution of "&(IF(P46=2,"urea",(IF(P46=1,"ammonia", " "))))&(IF(C55=200,"*"," ")) -> $/gallon for a 50 percent solution of urea | I55: =IF(C55=3.56, "* $3.56/gallon is a default value for the reagent cost. User should enter actual value, if known.", " ") -> 
B56: Electricity (Costelect) | C56: 0.21 | D56: ="$/kWh"&(IF(OR(C56=0.071, C56=0.039), "*"," ")) -> $/kWh | I56: =IF(C56=0.039,"* $0.0390/kWh is a default value for electicity cost. User should enter actual value, if known.",(IF(C56=0.071,"* $0.071/kWh is a default value for electrity cost. User should enter actual value, if known."," "))) -> 
B57: Catalyst cost (CC replace) | C57: 160 | D57: ="$/cubic foot (includes removal and disposal/regeneration of existing catalyst and installation of new catalyst"&(IF(C57=160,"*"," ")) -> $/cubic foot (includes removal and disposal/regeneration of existing catalyst and installation of new catalyst* | I57: =IF(C57=160, "* $160/cf is a default value for the catalyst cost. User should enter actual value, if known.", " ") -> * $160/cf is a default value for the catalyst cost. User should enter actual value, if known.
B58: Operator Labor Rate | C58: 60 | D58: ="$/hour (including benefits)"&(IF(C58=60,"*"," ")) -> $/hour (including benefits)* | I58: =IF(C58=60, "* $60/hour is a default value for the operator labor rate. User should enter actual value, if known.", " ") -> * $60/hour is a default value for the operator labor rate. User should enter actual value, if known.
B59: Operator Hours/Day | C59: 4 | D59: ="hours/day"&(IF(C59=4,"*"," ")) -> hours/day* | I59: =IF(C59=4, "* 4 hours/day is a default value for the operator labor. User should enter actual value, if known.", " ") -> * 4 hours/day is a default value for the operator labor. User should enter actual value, if known.
B60: Note: The use of CEPCI in this spreadsheet is not an endorsement of the index, but is there merely to allow for availability of a well-known cost index to spreadsheet users. Use of other well-known cost indexes (e.g., M&S) is acceptable.
A62: Maintenance and Administrative Charges Cost Factors:
C63: 0.015
B64: Maintenance Cost Factor (MCF) = | C64: 0.005 | D64: =IF(C64>0.005,"*MCF is greater than the IPM default value of 0.005. User must document why the value entered is appropriate.",(IF(C64<0.005,"*MCF is less than the IPM default value of 0.005. User must document why the value entered is appropriate."," "))) -> 
B65: Administrative Charges Factor (ACF) = | C65: 0.03 | D65: =IF(C65>0.03,"*ACF is greater than the IPM default value of 0.03. User must document why the value entered is appropriate.",(IF(C65<0.03,"*ACF is less than the IPM default value of 0.03. User must document why the value entered is appropriate."," "))) -> 
A67: Data Sources for Default Values Used in Calculations:
B69: Data Element | C69: Default Value | D69: Sources for Default Value | J69: If you used your own site-specific values, please enter the value used and the reference source . . . | O69: Recommended data sources for site-specific information
B70: Reagent Cost ($/gallon) | C70: 1.62 | D70: Based on the average of vendor quotes from 2011 - 2013. | O70: Check with reagent vendors for current prices.
B71: Electricity Cost ($/kWh) | C71: 0.039 | D71: Average annual electricity cost for utilities is based on 2014 electricity production cost data for fossil-fuel plants compiled by the U.S. Energy Information (EIA). Available at http://www.eia.gov/tools/faqs/faq.cfm?id=19&t=3. | J71: $0.210/kWh GVEA rates. http://www.gvea.com/rates/rates | O71: Plant's utility bill or use U.S. Energy Information Administration (EIA) data for most recent year. Available at http://www.eia.gov/electricity/data.cfm#sales.
B72: Percent sulfur content for Coal (% weight) | C72: 0.31 | D72: Average sulfur content based on U.S. coal data for 2014 compiled by the U.S. Energy Information Administration (EIA) from data reported on EIA Form EIA-923, Power Plant Operations Report. Available at http://www.eia.gov/electricity/data/eia923/. | J72: 0.20 percent (Typical Gross As Received). Coal data sheet at http://www.usibelli.com/Coal_data.php | O72: Check with fuel supplier or use U.S. Energy Information Administration (EIA) data for most recent year." Available at http://www.eia.gov/electricity/data/eia923/.
B73: Higher Heating Value (HHV) (Btu/lb) | C73: 8730 | D73: 2014 coal data compiled by the Office of Oil, Gas, and Coal Supply Statistics, U.S. Energy Information Administration (EIA) from data reported on EIA Form EIA-923, Power Plant Operations Report. Available at http://www.eia.gov/electricity/data/eia923/. | J73: 7,560 Btu/lb (Typical Gross As Received). Coal data sheet at http://www.usibelli.com/Coal_data.php | O73: Fuel supplier or use U.S. Energy Information Administration (EIA) data for most recent year." Available at http://www.eia.gov/electricity/data/eia923/.
B74: Catalyst Cost ($/cubic foot) | C74: 160 | D74: Cichanowicz, J.E. "Current Capital Cost and Cost-Effectiveness of Power Plant Emissions Control Technologies", July 2013. | O74: Check with vendors for current prices.

Sheet SCR Design Parameters
A1: SCR Design Parameters
A3: The following design parameters for the SCR were calculated based on the values entered on the Data Inputs tab. These values were used to prepare the costs shown on the Cost Estimate tab.
A5: Parameter | B5: Equation | C5: Calculated Value | D5: Units
A6: Maximum Annual Heat Input Rate (QB) = | B6: =IF('Data Inputs'!P8=2,"Bmw x NPHR =", "HHV x Max. Fuel Rate =") -> HHV x Max. Fuel Rate = | C6: =IF('Data Inputs'!P8=2,('Data Inputs'!C10*'Data Inputs'!C17),'Data Inputs'!C10) -> 230 | D6: MMBtu/hour
A7: =IF('Data Inputs'!P8=2,"Maximum Annual MW Output (Bmw) =",(IF('Data Inputs'!P8=3,"Maximum Annual fuel consumption (mfuel) ="," "))) -> Maximum Annual fuel consumption (mfuel) = | B7: =IF('Data Inputs'!P8=2, "Bmw x 8760 = ", (IF('Data Inputs'!P8=3, "(QB x 1.0E6 x 8760)/HHV =", " "))) -> (QB x 1.0E6 x 8760)/HHV = | C7: =IF('Data Inputs'!P8=3,((('SCR Design Parameters'!C6/'Data Inputs'!C12)*1000000)*8760),(IF('Data Inputs'!P8=2,('Data Inputs'!C10*8760)," "))) -> 266507936.5 | D7: ='Data Inputs'!D14 -> lbs/year
A8: =IF('Data Inputs'!P8=2,"Estimated Actual Annual MW Output (Boutput) =",(IF('Data Inputs'!P8=3,"Actual Annual fuel consumption (Mactual) ="," "))) -> Actual Annual fuel consumption (Mactual) = | C8: =660000000/6 -> 110000000 | D8: ='Data Inputs'!D14 -> lbs/year
A9: Heat Rate Factor (HRF) = | B9: NPHR/10 = | C9: ='Data Inputs'!C17/10 -> 1
A10: Total System Capacity Factor (CFtotal) = | B10: =IF('Data Inputs'!P8=2, "(Boutput/Bmw)*(tscr/tplant) =", (IF('Data Inputs'!P8=3, "(Mactual/Mfuel) x (tscr/tplant) =", " "))) -> (Mactual/Mfuel) x (tscr/tplant) = | C10: =(C8/C7)*('Data Inputs'!C31/'Data Inputs'!C32) -> 0.412745682 | D10: fraction
A11: Total operating time for the SCR (top) = | B11: CFtotal x 8760 = | C11: =C10*8760 -> 3615.652174 | D11: hours
A12: NOx Removal Efficiency (EF) = | B12: (NOxin- NOxout)/NOxin = | C12: ='Data Inputs'!C34 -> 90 | D12: percent
A13: NOx removed per hour = | B13: NOxin x EF x QB = | C13: =(C12/100)*'Data Inputs'!C33*'SCR Design Parameters'!C6 -> 120.06 | D13: lb/hour
A14: Total NOx removed per year = | B14: (NOxin x EF x QB x top)/2000 = | C14: =C13*C11/2000 -> 217.0476 | D14: tons/year
A15: NOx removal factor (NRF) = | B15: EF/80 | C15: =C12/80 -> 1.125
A16: Volumetric flue gas flow rate (qflue gas) = | B16: Qfuel x QB x (460 + T)/(460 + 700)nscr | C16: =IF(OR('Data Inputs'!K36="UNK", 'Data Inputs'!K36=" "), ('Data Inputs'!K40*'SCR Design Parameters'!C6*(460+'Data Inputs'!K39))/((460+700)*'Data Inputs'!K31), 'Data Inputs'!K36) -> 240000 | D16: acfm
A17: Space velocity (Vspace) = | B17: qflue gas/Volcatalyst | C17: =C16/C34 -> 71.20892893 | D17: /hour
A18: Residence Time | B18: 1/Vspace | C18: =1/C17 -> 0.01404318272 | D18: hour
A19: Coal Factor (CoalF) = | B19: 1 for oil and natural gas; 1 for bituminous; 1.05 for sub-bituminous; 1.07 for lignite (weighted average is used for coal blends) | C19: =IF('Data Inputs'!P17=2, (IF('Data Inputs'!S12=2,1,(IF('Data Inputs'!S12=3,1.05,(IF('Data Inputs'!S12=4,1.07,J19)))))), 1) -> 1.05 | J19: =((1*'Data Inputs'!I19)+(1.05*'Data Inputs'!I20)+(1.07*'Data Inputs'!I21))/SUM('Data Inputs'!I19:I21) -> 1.05 | K19: CoalF for blended fuel
A20: SO2 Emission rate = | B20: (%S/100)x(64/32)*1E6)/HHV = | C20: =IF('Data Inputs'!V11=2,"< 3",(IF('Data Inputs'!V11=3,"> 3"," "))) -> < 3 | D20: =IF('Data Inputs'!P17=2, "lbs/MMBtu", " ") -> lbs/MMBtu | E20: =IF('Data Inputs'!P17<>2,"Not applicable; factor applies only to coal-fired boilers", " ") -> 
A21: Elevation Factor (ELEVF) = | B21: 14.7 psia/P = | E21: =IF('[1]Data Inputs'!C24<500, "Not applicable; elevation factor does not apply to plants located at elevations below 500 feet.", " ") -> Not applicable; elevation factor does not apply to plants located at elevations below 500 feet.
A22: =IF('Data Inputs'!I32=0,"Atmospheric pressure at sea level (P) =","Atmospheric pressure at "&'Data Inputs'!I32&" feet above sea level (P) =") -> Atmospheric pressure at sea level (P) = | B22: 2116x[(59-(0.00356xh)+459.7)/518.6]5.256 x (1/144)* = | C22: =(2116)*(((59-(0.00356*'Data Inputs'!C24)+459.7)/518.6)^5.256)*(1/144) -> 14.47212909 | D22: psia
B23: =IF('Data Inputs'!S8=2,"New Construction",(IF('Data Inputs'!S8=3,"SNCR Retrofit"," "))) -> SNCR Retrofit | C23: =IF('Data Inputs'!S8=2,1,(IF('Data Inputs'!S8=3,1.19," "))) -> 1.19
A24: Retrofit Factor (RF) | B24: =IF('Data Inputs'!S8=2,"New Construction",(IF('Data Inputs'!S8=3,"Retrofit to existing boiler"," "))) -> Retrofit to existing boiler | C24: ='Data Inputs'!D7 -> 1.5
A25: * Equation is from the National Aeronautics and Space Administration (NASA), Earth Atmosphere Model. Available at https://spaceflightsystems.grc.nasa.gov/education/rocket/atmos.html.
A30: Catalyst Data:
A32: Parameter | B32: Equation | C32: Calculated Value | D32: Units | J32: =(0.2869+(1.058*C12/100)) -> 1.2391 | K32: EF adj
A33: Future worth factor (FWF) = | B33: (interest rate)(1/((1+ interest rate)Y -1) , where Y = Hcatalyts/(tSCR x 24 hours) rounded to the nearest integer | C33: =('Data Inputs'!C54/100)/(((1+('Data Inputs'!C54/100))^L33)-1) -> 0.3172085646 | D33: Fraction | J33: =(1.2835-(0.0567*'Data Inputs'!K34)) -> 0.7165 | K33: Slipadj | L33: =ROUND('Data Inputs'!C38/('Data Inputs'!C31*24),0) -> 3
A34: Catalyst volume (Volcatalyst) = | B34: 2.81 x QB x EF adj x Slipadj x Noxadj x Sadj x (Tadj/Nscr) | C34: =IF(OR('Data Inputs'!K35="UNK",'Data Inputs'!K35=" "),(2.81*C6*'SCR Design Parameters'!J32*'SCR Design Parameters'!J33*'SCR Design Parameters'!J34*'SCR Design Parameters'!J35*('SCR Design Parameters'!J37/'Data Inputs'!K31)), 'Data Inputs'!K35) -> 3370.363852 | D34: Cubic feet | J34: =(0.8524+(0.3208*'Data Inputs'!C33)) -> 1.038464 | K34: Noxadj
A35: Cross sectional area of the catalyst (Acatalyst) = | B35: qflue gas /(16ft/sec x 60 sec/min) | C35: =C16/(16*60) -> 250 | D35: ft2 | J35: =IF('Data Inputs'!P17=2, (0.9636+(0.0455*'Data Inputs'!I12)), 0.9636) -> 0.9727 | K35: Sadj
A36: Height of each catalyst layer (Hlayer) = | B36: (Volcatalyst/(Rlayer x Acatalyst)) + 1 | C36: =(C34/('Data Inputs'!K32*'SCR Design Parameters'!C35))+1 -> 5.493818469 | D36: feet
J37: =(15.16-(0.03937*'Data Inputs'!K39)+(0.0000274*('Data Inputs'!K39)^2)) -> 5.815 | K37: Tadj
A38: SCR Reactor Data:
A40: Parameter | B40: Equation | C40: Calculated Value | D40: Units
A41: Cross sectional area of the reactor (ASCR) = | B41: 1.15 x Acatalyst | C41: =1.15*C35 -> 287.5 | D41: ft2
A42: Reactor length and width dimentions for a square reactor = | B42: (ASCR)0.5 | C42: =(C41)^0.5 -> 16.95582496 | D42: feet
A43: Reactor height = | B43: (Rlayer + Rempty) x (7ft + hlayer) + 9ft | C43: =('Data Inputs'!K32+'Data Inputs'!K33)*(7+C36)+9 -> 58.97527388 | D43: feet
A46: Reagent Data:
A47: Type of reagent used | B47: =IF('Data Inputs'!P46=1,"Ammonia","Urea") -> Urea | C47: Molecular Weight of Reagent (MW) = | E47: =IF('Data Inputs'!P46=2, 60.06, 17.03) -> 60.06 | F47: g/mole | J47: =IF('Data Inputs'!P46=1,1,2) -> 2 | K47: =IF('Data Inputs'!P47=1,71,56) -> 56
D48: Density = | E48: ='Data Inputs'!C42 -> 71 | F48: lb/ft3
A50: Parameter | B50: Equation | C50: Calculated Value | D50: Units
A51: Reagent consumption rate (mreagent) = | B51: (NOxin x QB x EF x SFR x MWR)/MWNOx = | C51: =('Data Inputs'!C33*'SCR Design Parameters'!C6*('SCR Design Parameters'!C12/100)*'Data Inputs'!C35*'SCR Design Parameters'!E47)/(46.01) -> 82.27932819 | D51: lb/hour
A52: Reagent Usage Rate (msol) = | B52: mreagent/Csol = | C52: =C51/('Data Inputs'!C41/100) -> 164.5586564 | D52: lb/hour
B53: (msol x 7.4805)/Reagent Density | C53: =(C52*7.4805/E48) -> 17.33776097 | D53: gal/hour
A54: Estimated tank volume for reagent storage = | B54: (msol x 7.4805 x tstorage x 24)/Reagent Density = | C54: =C53*'Data Inputs'!C43*24 -> 12483.1879 | D54: ="gallons (storage needed to store a "& 'Data Inputs'!C43 &" day reagent supply)" -> gallons (storage needed to store a 30 day reagent supply)
A56: Capital Recovery Factor:
A58: Parameter | B58: Equation | C58: Calculated Value
A59: Capital Recovery Factor (CRF) = | B59: i (1+ i)n/(1+ i)n - 1 = | C59: =(('Data Inputs'!C54/100)*((1+'Data Inputs'!C54/100)^'Data Inputs'!C39))/(((1+'Data Inputs'!C54/100)^'Data Inputs'!C39)-1) -> 0.08024258719
B60: Where n = Equipment Life and i= Interest Rate
A62: Other parameters | B62: Equation | C62: Calculated Value | D62: Units
A63: Electricity Usage:
A64: Electricity Consumption (P) = | B64: A x 1,000 x 0.0056 x (CoalF x HRF)0.43 = | C64: =('Data Inputs'!C10*1000*0.0056*('SCR Design Parameters'!C19*'SCR Design Parameters'!C9)^0.43)*(IF('Data Inputs'!P8=3, 0.1, 1)) -> 131.5307394 | D64: kW
B65: =IF('Data Inputs'!P8=2, "where A = Bmw for utility boilers", "where A = (0.1 x QB) for industrial boilers.") -> where A = (0.1 x QB) for industrial boilers.

Sheet Cost Estimate
A1: Cost Estimate
A3: Total Capital Investment (TCI) | G3: =IF('Data Inputs'!C24<500, 1,'SCR Design Parameters'!C21) -> 1 | H3: ELEVF
A5: TCI for Oil and Natural Gas Boilers
A6: For Oil and Natural Gas-Fired Utility Boilers between 25MW and 500 MW: | G6: New | H6: Retrofit
A7: TCI = 80,000 x (200/BMW )0.35 x BMW x ELEVF x RF | G7: =IF(AND('Data Inputs'!S8=2,'Data Inputs'!P8=2,'Data Inputs'!P17>2,'Data Inputs'!C10<500.1),(80000*((200/'Data Inputs'!C10)^0.35)*'Data Inputs'!C10*G3*0.8), 0) -> 0 | H7: =IF(AND('Data Inputs'!S8=3,'Data Inputs'!P8=2,'Data Inputs'!P17>2,'Data Inputs'!C10<500.1),(80000*((200/'Data Inputs'!C10)^0.35)*'Data Inputs'!C10*G3*'Data Inputs'!D7), 0) -> 0
A8: For Oil and Natural Gas-Fired Utility Boilers >500 MW:
A9: TCI = 60,670 x BMW x ELEVF x RF | G9: =IF(AND('Data Inputs'!S8=2,'Data Inputs'!P8=2, 'Data Inputs'!P17>2, 'Data Inputs'!C10>500), (60670*'Data Inputs'!C10*G3*0.8), 0) -> 0 | H9: =IF(AND('Data Inputs'!S8=3,'Data Inputs'!P8=2, 'Data Inputs'!P17>2, 'Data Inputs'!C10>500), (60670*'Data Inputs'!C10*G3*'Data Inputs'!D7), 0) -> 0
A10: For Oil-Fired Industrial Boilers between 275 and 5,500 MMBTU/hour :
A11: TCI = 7,270 x (2,200/QB )0.35 x QB x ELEVF x RF | G11: =IF(AND('Data Inputs'!S8=2,'Data Inputs'!P8=3, 'Data Inputs'!P17=3, 'Data Inputs'!C10<5500.1),(7270*((2200/'Data Inputs'!C10)^0.35)*'Data Inputs'!C10*G3*0.8), 0) -> 0 | H11: =IF(AND('Data Inputs'!S8=3,'Data Inputs'!P8=3, 'Data Inputs'!P17=3, 'Data Inputs'!C10<5500.1),(7270*((2200/'Data Inputs'!C10)^0.35)*'Data Inputs'!C10*G3*'Data Inputs'!D7), 0) -> 0
A12: For Natural Gas-Fired Industrial Boilers between 205 and 4,100 MMBTU/hour :
A13: TCI = 9,760 x (1,640/QB )0.35 x QB x ELEVF x RF | G13: =IF(AND('Data Inputs'!S8=2,'Data Inputs'!P8=3, 'Data Inputs'!P17=4, 'Data Inputs'!C10<4100.1),(9760*((1640/'Data Inputs'!C10)^0.35)*'Data Inputs'!C10*G3*0.8), 0) -> 0 | H13: =IF(AND('Data Inputs'!S8=3,'Data Inputs'!P8=3, 'Data Inputs'!P17=4, 'Data Inputs'!C10<4100.1),(9760*((1640/'Data Inputs'!C10)^0.35)*'Data Inputs'!C10*G3*'Data Inputs'!D7), 0) -> 0
A14: For Oil-Fired Industrial Boilers >5,500 MMBtu/hour:
A15: TCI = 5,275 x QB x ELEVF x RF | G15: =IF(AND('Data Inputs'!S8=2,'Data Inputs'!P8=3, 'Data Inputs'!P17=3, 'Data Inputs'!C10>5500),(5275*'Data Inputs'!C10*G3*0.8), 0) -> 0 | H15: =IF(AND('Data Inputs'!S8=3,'Data Inputs'!P8=3, 'Data Inputs'!P17=3, 'Data Inputs'!C10>5500),(5275*'Data Inputs'!C10*G3*'Data Inputs'!D7), 0) -> 0
A16: For Natural Gas-Fired Industrial Boilers >4,100 MMBtu/hour:
A17: TCI = 7,082 x QB x ELEVF x RF | G17: =IF(AND('Data Inputs'!S8=2,'Data Inputs'!P8=3, 'Data Inputs'!P17=4, 'Data Inputs'!C10>4100), (7082*'Data Inputs'!C10*G3*0.8), 0) -> 0 | H17: =IF(AND('Data Inputs'!S8=3,'Data Inputs'!P8=3, 'Data Inputs'!P17=4, 'Data Inputs'!C10>4100), (7082*'Data Inputs'!C10*G3*'Data Inputs'!D7), 0) -> 0
A19: Total Capital Investment (TCI) = | B19: =(G19+H19)*('Data Inputs'!C53/'Data Inputs'!F53) -> 0 | D19: ="in "&'Data Inputs'!$C$52 & " dollars" -> in 2016 dollars | G19: =SUM(G7:G17) -> 0 | H19: =SUM(H7:H17) -> 0
A21: TCI for Coal-Fired Boilers
A22: For Coal-Fired Boilers:
A23: TCI = 1.3 x (SCRcost + RPC + APHC + BPC)
A25: Capital costs for the SCR (SCRcost) = | B25: =D39 -> 7121955.408 | D25: ="in "&'Data Inputs'!$C$52 & " dollars" -> in 2016 dollars
A26: Reagent Preparation Cost (RPC) = | B26: =D47 -> 2232373.621 | D26: ="in "&'Data Inputs'!$C$52 & " dollars" -> in 2016 dollars
A27: Air Pre-Heater Costs (APHC)* = | B27: =D55 -> 0 | D27: ="in "&'Data Inputs'!$C$52 & " dollars" -> in 2016 dollars
A28: Balance of Plant Costs (BPC) = | B28: =D64 -> 2411594.283 | D28: ="in "&'Data Inputs'!$C$52 & " dollars" -> in 2016 dollars
A29: Total Capital Investment (TCI) = | B29: =1.3*(SUM(B25:B28)) -> 15295700.31 | D29: ="in "&'Data Inputs'!$C$52 & " dollars" -> in 2016 dollars
A30: =IF(AND('Data Inputs'!P17=2,'Data Inputs'!V11=3),"* This factor applies because the boiler burns bituminous coal and emits equal to or greater than 3lb/MMBtu of sulfur dioxide. ", "* Not applicable - This factor applies only to coal-fired boilers that burn bituminous coal and emits equal to or greater than 3lb/MMBtu of sulfur dioxide.") -> * Not applicable - This factor applies only to coal-fired boilers that burn bituminous coal and emits equal to or greater than 3lb/MMBtu of sulfur dioxide.
A33: SCR Capital Costs (SCRcost)
A34: For Coal-Fired Utility Boilers >25 MW:
A35: SCRcost = 270,000 x (NRF)0.2 x (BMW x HRF x CoalF)0.92 x ELEVF x RF | G35: =IF(AND('Data Inputs'!S8=2,'Data Inputs'!P8=2, 'Data Inputs'!P17=2),(270000*(('SCR Design Parameters'!C15)^0.2)*(('Data Inputs'!C10*'SCR Design Parameters'!C9*'SCR Design Parameters'!C19)^0.92)*'Cost Estimate'!G3*0.8), 0) -> 0 | H35: =IF(AND('Data Inputs'!S8=3,'Data Inputs'!P8=2, 'Data Inputs'!P17=2),(270000*(('SCR Design Parameters'!C15)^0.2)*(('Data Inputs'!C10*'SCR Design Parameters'!C9*'SCR Design Parameters'!C19)^0.92)*'Cost Estimate'!G3*'SCR Design Parameters'!C24), 0) -> 0
A36: For Coal-Fired Industrial Boilers >250 MMBtu/hour:
A37: SCRcost = 270,000 x (NRF)0.2 x (0.1 x QB x CoalF)0.92 x ELEVF x RF | G37: =IF(AND('Data Inputs'!S8=2,'Data Inputs'!P8=3, 'Data Inputs'!P17=2),(270000*(('SCR Design Parameters'!C15)^0.2)*((0.1*'Data Inputs'!C10*'SCR Design Parameters'!C19)^0.92)*'Cost Estimate'!G3*0.8), 0) -> 0 | H37: =IF(AND('Data Inputs'!S8=3,'Data Inputs'!P8=3, 'Data Inputs'!P17=2),(270000*(('SCR Design Parameters'!C15)^0.2)*((0.1*'Data Inputs'!C10*'SCR Design Parameters'!C19)^0.92)*'Cost Estimate'!G3*'SCR Design Parameters'!C24), 0) -> 7761922.318
G38: =SUM(G35:G37) -> 0 | H38: =SUM(H35:H37) -> 7761922.318
A39: SCR Capital Costs (SCRcost) = | D39: =(G38+H38)*('Data Inputs'!C53/'Data Inputs'!F53) -> 7121955.408 | E39: ="in "&'Data Inputs'!$C$52 & " dollars" -> in 2016 dollars
A41: Reagent Preparation Costs (RPC)
A42: For Coal-Fired Utility Boilers >25 MW:
A43: RPC = 490,000 x (NOxin x BMW x NPHR x EF)0.25 x RF | G43: =IF(AND('Data Inputs'!S8=2,'Data Inputs'!P8=2,'Data Inputs'!P17=2),(490000*(('Data Inputs'!C33*'Data Inputs'!C10*'Data Inputs'!C17*('SCR Design Parameters'!C12/100))^0.25)*0.8), 0) -> 0 | H43: =IF(AND('Data Inputs'!S8=3,'Data Inputs'!P8=2,'Data Inputs'!P17=2),(490000*(('Data Inputs'!C33*'Data Inputs'!C10*'Data Inputs'!C17*('SCR Design Parameters'!C12/100))^0.25)*'SCR Design Parameters'!C24), 0) -> 0
A44: For Coal-Fired Industrial Boilers >250 MMBtu/hour:
A45: RPC = 490,000 x (NOxin x QB x EF)0.25 x RF | G45: =IF(AND('Data Inputs'!S8=2,'Data Inputs'!P8=3,'Data Inputs'!P17=2),(490000*(('Data Inputs'!C33*'Data Inputs'!C10*('SCR Design Parameters'!C12/100))^0.25)*0.8), 0) -> 0 | H45: =IF(AND('Data Inputs'!S8=3,'Data Inputs'!P8=3,'Data Inputs'!P17=2),(490000*(('Data Inputs'!C33*'Data Inputs'!C10*('SCR Design Parameters'!C12/100))^0.25)*'SCR Design Parameters'!C24), 0) -> 2432970.952
A47: Reagent Preparation Costs (RPC) = | D47: =(G47+H47)*('Data Inputs'!C53/'Data Inputs'!F53) -> 2232373.621 | E47: ="in "&'Data Inputs'!$C$52 & " dollars" -> in 2016 dollars | G47: =SUM(G43:G45) -> 0 | H47: =SUM(H43:H45) -> 2432970.952
A49: Air Pre-Heater Costs (APHC)*
A50: For Coal-Fired Utility Boilers >25MW:
A51: APHC = 69,000 x (BMW x HRF x CoalF)0.78 x AHF x RF | G51: =IF(AND('Data Inputs'!S8=2,'Data Inputs'!P8=2,'Data Inputs'!P17=2),(69000*('Data Inputs'!C10*'SCR Design Parameters'!C9*'SCR Design Parameters'!C19)^0.78)*(IF('Data Inputs'!V11=3,1,0))*0.8,0) -> 0 | H51: =IF(AND('Data Inputs'!S8=3, 'Data Inputs'!P8=2,'Data Inputs'!P17=2),(69000*('Data Inputs'!C10*'SCR Design Parameters'!C9*'SCR Design Parameters'!C19)^0.78)*(IF('Data Inputs'!V11=3,1,0))*'SCR Design Parameters'!C24, 0) -> 0
A52: For Coal-Fired Industrial Boilers >250 MMBtu/hour:
A53: APHC = 69,000 x (0.1 x QB x CoalF)0.78 x AHF x RF | G53: =IF(AND('Data Inputs'!S8=2,'Data Inputs'!P8=3,'Data Inputs'!P17=2), (69000*((0.1*'Data Inputs'!C10*'SCR Design Parameters'!C19)^0.78)*(IF('Data Inputs'!V11=3, 1, 0))*0.8), 0) -> 0 | H53: =IF(AND('Data Inputs'!S8=3,'Data Inputs'!P8=3,'Data Inputs'!P17=2), (69000*((0.1*'Data Inputs'!C10*'SCR Design Parameters'!C19)^0.78)*(IF('Data Inputs'!V11=3, 1, 0))*'SCR Design Parameters'!C24), 0) -> 0
A55: Air Pre-Heater Costs (APHcost) = | D55: =(G55+H55)*('Data Inputs'!C53/'Data Inputs'!F53) -> 0 | E55: ="in "&'Data Inputs'!$C$52 & " dollars" -> in 2016 dollars | G55: =SUM(G51:G53) -> 0 | H55: =SUM(H51:H53) -> 0
A56: =IF(AND('Data Inputs'!P17=2,'Data Inputs'!V11=3),"* This factor applies because the boiler burns bituminous coal and emits equal to or greater than 3lb/MMBtu of sulfur dioxide. ", "* Not applicable - This factor applies only to coal-fired boilers that burn bituminous coal and emit equal to or greater than 3lb/MMBtu of sulfur dioxide.") -> * Not applicable - This factor applies only to coal-fired boilers that burn bituminous coal and emit equal to or greater than 3lb/MMBtu of sulfur dioxide.
A58: Balance of Plant Costs (BPC)
A59: For Coal-Fired Utility Boilers >25MW:
A60: BPC = 460,000 x (BMW x HRFx CoalF)0.42 x ELEVF x RF | G60: =IF(AND('Data Inputs'!S8=2,'Data Inputs'!P8=2,'Data Inputs'!P17=2),(460000*(('Data Inputs'!C10*'SCR Design Parameters'!C9*'SCR Design Parameters'!C19)^0.42)*G3*0.8), 0) -> 0 | H60: =IF(AND('Data Inputs'!S8=3,'Data Inputs'!P8=2,'Data Inputs'!P17=2),(460000*(('Data Inputs'!C10*'SCR Design Parameters'!C9*'SCR Design Parameters'!C19)^0.42)*G3*'SCR Design Parameters'!C24), 0) -> 0
A61: For Coal-Fired Industrial Boilers >250 MMBtu/hour:
A62: BPC = 460,000 x (0.1 x QB x CoalF)0.42 ELEVF x RF | G62: =IF(AND('Data Inputs'!S8=2,'Data Inputs'!P8=3,'Data Inputs'!P17=2),(460000*((0.1*'Data Inputs'!C10*'SCR Design Parameters'!C19)^0.42)*G3*0.8), 0) -> 0 | H62: =IF(AND('Data Inputs'!S8=3,'Data Inputs'!P8=3,'Data Inputs'!P17=2),(460000*((0.1*'Data Inputs'!C10*'SCR Design Parameters'!C19)^0.42)*G3*'SCR Design Parameters'!C24), 0) -> 2628296.081
A64: Balance of Plant Costs (BOPcost) = | D64: =(G64+H64)*('Data Inputs'!C53/'Data Inputs'!F53) -> 2411594.283 | E64: ="in "&'Data Inputs'!$C$52 & " dollars" -> in 2016 dollars | G64: =SUM(G60:G62) -> 0 | H64: =SUM(H60:H62) -> 2628296.081
A67: Annual Costs
A69: Total Annual Cost (TAC)
A70: TAC = Direct Annual Costs + Indirect Annual Costs
A72: Direct Annual Costs (DAC) = | C72: =D88 -> 334920.6319 | D72: ="in "&'Data Inputs'!$C$52 & " dollars" -> in 2016 dollars
A73: Indirect Annual Costs (IDAC) = | C73: =D95 -> 1230912.307 | D73: ="in "&'Data Inputs'!$C$52 & " dollars" -> in 2016 dollars
A74: Total annual costs (TAC) = DAC + IDAC | C74: =C72+C73 -> 1565832.939 | D74: ="in "&'Data Inputs'!$C$52 & " dollars" -> in 2016 dollars
A76: Direct Annual Costs (DAC)
A77: DAC = (Annual Maintenance Cost) + (Annual Reagent Cost) + (Annual Electricity Cost) + (Annual Catalyst Cost)
A79: Annual Maintenance Cost = | B79: ='Data Inputs'!C64&" x TCI =" -> 0.005 x TCI = | D79: =IF('Data Inputs'!P17>2, (B19*'Data Inputs'!C64), (IF('Data Inputs'!P17=2, (B29*'Data Inputs'!C64), 0))) -> 76478.50153 | E79: ="in "&'Data Inputs'!$C$52 & " dollars" -> in 2016 dollars
A80: Annual Reagent Cost = | B80: qsol x Costreag x top = | D80: ='Data Inputs'!C55*'SCR Design Parameters'!C53*'SCR Design Parameters'!C11 -> 101553.4473 | E80: ="in "&'Data Inputs'!$C$52 & " dollars" -> in 2016 dollars
A81: Annual Electricity Cost = | B81: P x Costelect x top = | D81: ='SCR Design Parameters'!C64*'Data Inputs'!C56*'SCR Design Parameters'!C11 -> 99869.57483 | E81: ="in "&'Data Inputs'!$C$52 & " dollars" -> in 2016 dollars
A82: Annual Catalyst Replacement Cost = | D82: =IF(H83= 1, H85,H88) -> 57019.10825 | E82: ="in "&'Data Inputs'!$C$52 & " dollars" -> in 2016 dollars
H83: =IF('Data Inputs'!P17=2,'Data Inputs'!P26,1) -> 1
A84: =IF(OR('Data Inputs'!P17=2, 'Data Inputs'!P17=1), "For coal-fired boilers, the following methods may be used to calcuate the catalyst replacement cost.", " ") -> For coal-fired boilers, the following methods may be used to calcuate the catalyst replacement cost.
A85: =IF(OR('Data Inputs'!P17=1,'Data Inputs'!P17=2), "Method 1 (for all fuel types):", " ") -> Method 1 (for all fuel types): | B85: nscr x Volcat x (CCreplace/Rlayer) x FWF | D85: =IF('Data Inputs'!P17=2, "* Calculation Method "&H83&" selected.", " ") -> * Calculation Method 1 selected. | G85: Method 1 | H85: ='Data Inputs'!K31*'SCR Design Parameters'!C34*('Data Inputs'!C57/'Data Inputs'!K32)*'SCR Design Parameters'!C33 -> 57019.10825
A86: =IF(OR('Data Inputs'!P17=1, 'Data Inputs'!P17=2), "Method 2 (for coal-fired utility boilers):", " ") -> Method 2 (for coal-fired utility boilers): | B86: BMW x 0.4 x (CoalF)2.9 x (NRF)0.71 x (CCreplace) x 35.3 | G86: Method 2 (utility) | H86: =('Data Inputs'!C10)*(('SCR Design Parameters'!C19)^2.9)*(('SCR Design Parameters'!C15)^0.71)*('Data Inputs'!C57)*(35.3) -> 1627008.352
A87: =IF(OR('Data Inputs'!P17=1, 'Data Inputs'!P17=2), "Method 2 (for coal-fired industrial boilers):", " ") -> Method 2 (for coal-fired industrial boilers): | B87: (QB/NPHR) x 0.4 x (CoalF)2.9 x (NRF)0.71 x (CCreplace) x 35.3 | G87: Method 2 (industrial) | H87: =('Data Inputs'!C10/'Data Inputs'!C17)*(('SCR Design Parameters'!C19)^2.9)*(('SCR Design Parameters'!C15)^0.71)*('Data Inputs'!C57)*(35.3) -> 162700.8352
A88: Direct Annual Cost = | D88: =SUM(D79:D82) -> 334920.6319 | E88: ="in "&'Data Inputs'!$C$52 & " dollars" -> in 2016 dollars | H88: =IF('Data Inputs'!P8=2, 'Cost Estimate'!H86, 'Cost Estimate'!H87) -> 162700.8352
A90: Indirect Annual Cost (IDAC)
A91: IDAC = Administrative Charges + Capital Recovery Costs
A93: Administrative Charges (AC) = | B93: ='Data Inputs'!C65 &" x (Operator Cost + 0.4 x Annual Maintenance Cost) =" -> 0.03 x (Operator Cost + 0.4 x Annual Maintenance Cost) = | D93: ='Data Inputs'!C65*(('Data Inputs'!C31*'Data Inputs'!C58*'Data Inputs'!C59)+(0.4*D79)) -> 3545.742018 | E93: ="in "&'Data Inputs'!$C$52 & " dollars" -> in 2016 dollars
A94: Capital Recovery Costs (CR)= | B94: CRF x TCI = | D94: =IF('Data Inputs'!P17>2, B19*'SCR Design Parameters'!C59, (IF('Data Inputs'!P17=2, B29*'SCR Design Parameters'!C59, 0))) -> 1227366.565 | E94: ="in "&'Data Inputs'!$C$52 & " dollars" -> in 2016 dollars
A95: Indirect Annual Cost (IDAC) = | B95: AC + CR = | D95: =D93+D94 -> 1230912.307 | E95: ="in "&'Data Inputs'!$C$52 & " dollars" -> in 2016 dollars
A98: Cost Effectiveness
A100: Cost Effectiveness = Total Annual Cost/ NOx Removed/year
A102: Total Annual Cost (TAC) = | C102: =C74 -> 1565832.939 | D102: ="per year in "&'Data Inputs'!$C$52 & " dollars" -> per year in 2016 dollars
A103: NOx Removed = | C103: ='SCR Design Parameters'!C14 -> 217.0476 | D103: tons/year
A104: Cost Effectiveness = | C104: =C102/C103 -> 7214.237519 | D104: ="per ton of NOx removed in "&'Data Inputs'!$C$52 & " dollars" -> per ton of NOx removed in 2016 dollars

Sheet ESRI_MAPINFO_SHEET (hidden)
